[Event "Masters Tournament (MTO)"]
[Site "Biel, Switzerland"]
[Date "2026.07.16"]
[Round "4.19"]
[White "Al Ibrahim, Abdulrahman"]
[Black "Liu, Bei"]
[Result "0-1"]
[TimeControl "100+30+30sec/move"]
[WhiteTitle "-"]
[BlackTitle "-"]
[WhiteFideId "10300503"]
[BlackFideId "8603596"]
[WhiteElo "2016"]
[BlackElo "2175"]

1. e4 {[%clk 01:40:17]} {[%emt 00:00:42]} c5 {[%clk 01:40:53]} {[%emt
00:00:07]} 2. Nf3 {[%clk 01:40:39]} {[%emt 00:00:07]} d6 {[%clk 01:41:12]}
{[%emt 00:00:10]} 3. d4 {[%clk 01:40:57]} {[%emt 00:00:13]} cxd4 {[%clk
01:41:36]} {[%emt 00:00:06]} 4. Nxd4 {[%clk 01:41:23]} {[%emt 00:00:03]} Nf6
{[%clk 01:42:00]} {[%emt 00:00:07]} 5. Nc3 {[%clk 01:41:47]} {[%emt 00:00:05]}
a6 {[%clk 01:42:11]} {[%emt 00:00:20]} 6. Be3 {[%clk 01:41:50]} {[%emt
00:00:26]} e5 {[%clk 01:42:35]} {[%emt 00:00:07]} 7. Nf3 {[%clk 01:41:58]}
{[%emt 00:00:22]} Be7 {[%clk 01:42:52]} {[%emt 00:00:12]} 8. Bc4 {[%clk
01:42:01]} {[%emt 00:00:27]} O-O {[%clk 01:43:15]} {[%emt 00:00:07]} 9. O-O
{[%clk 01:42:21]} {[%emt 00:00:11]} Nc6 {[%clk 01:43:41]} {[%emt 00:00:04]} 10.
Re1 {[%clk 01:41:26]} {[%emt 00:01:24]} Be6 {[%clk 01:43:03]} {[%emt 00:01:08]}
11. Bf1 {[%clk 01:40:20]} {[%emt 00:01:36]} b5 {[%clk 01:39:26]} {[%emt
00:04:07]} 12. a4 {[%clk 01:37:16]} {[%emt 00:03:35]} b4 {[%clk 01:32:21]}
{[%emt 00:07:35]} 13. Nd5 {[%clk 01:36:40]} {[%emt 00:01:06]} Nxe4 {[%clk
01:28:14]} {[%emt 00:04:37]} 14. Bb6 {[%clk 01:31:51]} {[%emt 00:05:19]} Qb8
{[%clk 01:28:38]} {[%emt 00:00:05]} 15. a5 {[%clk 01:32:01]} {[%emt 00:00:20]}
Nf6 {[%clk 01:15:29]} {[%emt 00:13:39]} 16. Nc7 {[%clk 01:31:47]} {[%emt
00:00:44]} Qb7 {[%clk 01:13:01]} {[%emt 00:02:58]} 17. Nxa8 {[%clk 01:31:19]}
{[%emt 00:00:57]} Rxa8 {[%clk 01:13:24]} {[%emt 00:00:08]} 18. Ng5 {[%clk
01:24:10]} {[%emt 00:07:40]} Bd7 {[%clk 00:57:23]} {[%emt 00:16:30]} 19. Nf3
{[%clk 01:01:17]} {[%emt 00:23:23]} Be6 {[%clk 00:37:50]} {[%emt 00:20:03]} 20.
Nd2 {[%clk 00:49:20]} {[%emt 00:12:27]} d5 {[%clk 00:37:34]} {[%emt 00:00:46]}
21. c3 {[%clk 00:44:09]} {[%emt 00:05:41]} Nd7 {[%clk 00:37:25]} {[%emt
00:00:39]} 22. Be3 {[%clk 00:44:07]} {[%emt 00:00:32]} Bd8 {[%clk 00:32:14]}
{[%emt 00:05:41]} 23. f4 {[%clk 00:33:15]} {[%emt 00:11:21]} bxc3 {[%clk
00:28:52]} {[%emt 00:03:53]} 24. bxc3 {[%clk 00:33:10]} {[%emt 00:00:36]} d4
{[%clk 00:29:21]} 25. cxd4 {[%clk 00:32:38]} {[%emt 00:01:01]} exd4 {[%clk
00:29:49]} {[%emt 00:00:02]} 26. Bf2 {[%clk 00:32:35]} {[%emt 00:00:33]} Bxa5
{[%clk 00:30:17]} {[%emt 00:00:03]} 27. Bd3 {[%clk 00:19:24]} {[%emt 00:13:41]}
Nc5 {[%clk 00:26:29]} {[%emt 00:04:18]} 28. Bf1 {[%clk 00:10:53]} {[%emt
00:09:01]} Bc3 {[%clk 00:21:21]} {[%emt 00:05:37]} 29. Rb1 {[%clk 00:11:03]}
{[%emt 00:00:21]} Qc7 {[%clk 00:21:39]} {[%emt 00:00:11]} 30. g3 {[%clk
00:10:33]} {[%emt 00:01:01]} Rd8 {[%clk 00:21:04]} {[%emt 00:01:04]} 31. Qc2
{[%clk 00:07:11]} {[%emt 00:03:53]} g6 {[%clk 00:20:41]} {[%emt 00:00:52]} 32.
Rbd1 {[%clk 00:07:31]} {[%emt 00:00:11]} Nb4 {[%clk 00:20:33]} {[%emt
00:00:37]} 33. Qb1 {[%clk 00:07:31]} {[%emt 00:00:30]} Bf5 {[%clk 00:20:49]}
{[%emt 00:00:14]} 34. Qc1 {[%clk 00:07:31]} {[%emt 00:00:30]} Ncd3 {[%clk
00:20:46]} {[%emt 00:00:32]} 35. Qa3 {[%clk 00:06:16]} {[%emt 00:01:46]} Nxe1
{[%clk 00:19:39]} {[%emt 00:01:37]} 0-1

[Event "Masters Tournament (MTO)"]
[Site "Biel, Switzerland"]
[Date "2026.07.16"]
[Round "4.20"]
[White "Ashwath, Kaushik"]
[Black "Coban, Ege"]
[Result "0-1"]
[TimeControl "100+30+30sec/move"]
[WhiteTitle "-"]
[BlackTitle "-"]
[WhiteFideId "33387230"]
[BlackFideId "26320304"]
[WhiteElo "2278"]
[BlackElo "1986"]

1. e4 {[%clk 01:40:40]} {[%emt 00:00:15]} c5 {[%clk 01:40:47]} {[%emt
00:00:18]} 2. Nf3 {[%clk 01:40:55]} {[%emt 00:00:14]} Nc6 {[%clk 01:41:01]}
{[%emt 00:00:17]} 3. d4 {[%clk 01:41:17]} {[%emt 00:00:08]} cxd4 {[%clk
01:41:22]} {[%emt 00:00:09]} 4. Nxd4 {[%clk 01:41:43]} {[%emt 00:00:05]} g6
{[%clk 01:41:41]} {[%emt 00:00:11]} 5. c4 {[%clk 01:42:07]} {[%emt 00:00:06]}
Nf6 {[%clk 01:42:01]} {[%emt 00:00:09]} 6. Nc3 {[%clk 01:42:22]} {[%emt
00:00:15]} d6 {[%clk 01:42:28]} {[%emt 00:00:04]} 7. Be2 {[%clk 01:42:37]}
{[%emt 00:00:14]} Nxd4 {[%clk 01:42:40]} {[%emt 00:00:18]} 8. Qxd4 {[%clk
01:43:00]} {[%emt 00:00:08]} Bg7 {[%clk 01:42:53]} {[%emt 00:00:17]} 9. Be3
{[%clk 01:43:25]} {[%emt 00:00:04]} O-O {[%clk 01:43:19]} {[%emt 00:00:05]} 10.
Qd3 {[%clk 01:43:51]} {[%emt 00:00:04]} Be6 {[%clk 01:43:43]} {[%emt 00:00:06]}
11. O-O {[%clk 01:42:06]} {[%emt 00:02:14]} Qa5 {[%clk 01:43:40]} {[%emt
00:00:33]} 12. Bd4 {[%clk 01:38:12]} {[%emt 00:04:24]} Rfc8 {[%clk 01:33:55]}
{[%emt 00:10:16]} 13. b3 {[%clk 01:35:34]} {[%emt 00:03:08]} Nd7 {[%clk
01:30:39]} {[%emt 00:03:45]} 14. Bxg7 {[%clk 01:25:22]} {[%emt 00:10:41]} Kxg7
{[%clk 01:30:47]} {[%emt 00:00:23]} 15. f4 {[%clk 01:17:38]} {[%emt 00:08:13]}
Nf6 {[%clk 01:24:50]} {[%emt 00:06:26]} 16. Bf3 {[%clk 01:07:34]} {[%emt
00:10:35]} Rd8 {[%clk 01:13:33]} {[%emt 00:11:48]} 17. Qe3 {[%clk 00:59:47]}
{[%emt 00:08:15]} Rab8 {[%clk 00:55:52]} {[%emt 00:18:12]} 18. Nb5 {[%clk
00:39:54]} {[%emt 00:20:22]} Qb6 {[%clk 00:47:16]} {[%emt 00:09:08]} 19. Qxb6
{[%clk 00:29:18]} {[%emt 00:11:05]} axb6 {[%clk 00:47:26]} {[%emt 00:00:20]} 20.
Rae1 {[%clk 00:21:30]} {[%emt 00:08:19]} Kf8 {[%clk 00:41:29]} {[%emt
00:06:27]} 21. h3 {[%clk 00:13:28]} {[%emt 00:08:31]} h5 {[%clk 00:38:21]}
{[%emt 00:03:38]} 22. Nd4 {[%clk 00:11:44]} {[%emt 00:02:13]} Bc8 {[%clk
00:37:21]} {[%emt 00:01:31]} 23. Rd1 {[%clk 00:11:11]} {[%emt 00:01:03]} e5
{[%clk 00:36:18]} {[%emt 00:01:33]} 24. Nb5 {[%clk 00:09:03]} {[%emt 00:02:39]}
Ke7 {[%clk 00:35:30]} {[%emt 00:01:17]} 25. Nxd6 {[%clk 00:03:50]} {[%emt
00:05:43]} exf4 {[%clk 00:34:55]} {[%emt 00:01:05]} 26. e5 {[%clk 00:04:03]}
{[%emt 00:00:17]} Nd7 {[%clk 00:35:12]} {[%emt 00:00:12]} 27. Rde1 {[%clk
00:02:21]} {[%emt 00:02:14]} Nc5 {[%clk 00:33:56]} {[%emt 00:01:46]} 28. Bd5
{[%clk 00:02:09]} {[%emt 00:00:41]} Be6 {[%clk 00:32:50]} {[%emt 00:01:37]} 29.
Re2 {[%clk 00:01:01]} {[%emt 00:01:38]} Nd3 {[%clk 00:28:59]} {[%emt 00:04:22]}
30. Bxe6 {[%clk 00:00:53]} {[%emt 00:00:38]} fxe6 {[%clk 00:27:26]} {[%emt
00:02:02]} 31. Rf3 {[%clk 00:00:34]} {[%emt 00:00:48]} Nxe5 {[%clk 00:25:48]}
{[%emt 00:02:09]} 32. Rxe5 {[%clk 00:00:51]} {[%emt 00:00:13]} Kxd6 {[%clk
00:23:56]} {[%emt 00:02:23]} 33. Rb5 {[%clk 00:01:06]} {[%emt 00:00:15]} Rf8
{[%clk 00:19:47]} {[%emt 00:04:38]} 34. Rxb6+ {[%clk 00:01:19]} {[%emt
00:00:18]} Ke5 {[%clk 00:20:16]} 35. Rf1 {[%clk 00:01:02]} {[%emt 00:00:47]}
Kf5 {[%clk 00:20:29]} {[%emt 00:00:17]} 36. Rb5+ {[%clk 00:00:47]} {[%emt
00:00:46]} e5 {[%clk 00:20:39]} {[%emt 00:00:20]} 37. g3 {[%clk 00:00:46]}
{[%emt 00:00:31]} g5 {[%clk 00:20:43]} {[%emt 00:00:25]} 38. h4 {[%clk
00:00:49]} {[%emt 00:00:27]} Rg8 {[%clk 00:18:36]} {[%emt 00:02:37]} 39. Kh2
{[%clk 00:00:40]} {[%emt 00:00:39]} Ke4 {[%clk 00:11:55]} {[%emt 00:07:12]} 40.
Re1+ {[%clk 00:00:33]} {[%emt 00:00:37]} Kf3 {[%clk 00:12:14]} {[%emt
00:00:11]} 41. Rbxe5 {[%clk 00:29:28]} {[%emt 00:01:34]} fxg3+ {[%clk
00:39:22]} {[%emt 00:03:21]} 42. Kg1 {[%clk 00:28:48]} {[%emt 00:01:10]} Rbf8
{[%clk 00:34:02]} {[%emt 00:05:51]} 43. hxg5 {[%clk 00:19:24]} {[%emt
00:09:53]} h4 {[%clk 00:31:48]} {[%emt 00:02:46]} 44. g6 {[%clk 00:12:46]}
{[%emt 00:07:07]} Kg4 {[%clk 00:31:03]} {[%emt 00:01:14]} 45. R1e4+ {[%emt
00:06:09]} Rf4 {[%clk 00:31:25]} 46. Re7 {[%clk 00:06:37]} {[%emt 00:01:09]}
Rxg6 {[%clk 00:30:02]} {[%emt 00:01:53]} 47. Rxf4+ {[%clk 00:06:57]} {[%emt
00:00:10]} Kxf4 {[%clk 00:30:31]} {[%emt 00:00:01]} 48. Rxb7 {[%clk 00:06:30]}
{[%emt 00:00:55]} Rd6 {[%clk 00:29:15]} {[%emt 00:01:48]} 49. Rf7+ {[%clk
00:03:40]} {[%emt 00:03:18]} Kg4 {[%clk 00:29:28]} {[%emt 00:00:19]} 50. c5
{[%clk 00:02:59]} {[%emt 00:01:11]} Rd1+ {[%clk 00:29:42]} {[%emt 00:00:16]} 51.
Rf1 {[%clk 00:03:24]} {[%emt 00:00:05]} Rxf1+ {[%clk 00:29:39]} {[%emt
00:00:33]} 52. Kxf1 {[%clk 00:03:48]} {[%emt 00:00:05]} Kf3 {[%clk 00:30:04]}
{[%emt 00:00:06]} 53. c6 {[%clk 00:04:10]} {[%emt 00:00:09]} g2+ {[%clk
00:30:31]} {[%emt 00:00:02]} 54. Kg1 {[%clk 00:04:34]} {[%emt 00:00:05]} Kg3
{[%clk 00:30:59]} {[%emt 00:00:03]} 55. c7 {[%clk 00:04:57]} {[%emt 00:00:07]}
h3 {[%clk 00:31:27]} {[%emt 00:00:02]} 0-1

[Event "Masters Tournament (MTO)"]
[Site "Biel, Switzerland"]
[Date "2026.07.16"]
[Round "4.21"]
[White "Arsenie, Cristian Marc"]
[Black "Kwiatkowski, Jakub"]
[Result "1/2-1/2"]
[TimeControl "100+30+30sec/move"]
[WhiteTitle "-"]
[BlackTitle "-"]
[WhiteFideId "1345923"]
[BlackFideId "1348736"]
[WhiteElo "2300"]
[BlackElo "2107"]

1. e4 {[%clk 01:40:58]} c5 {[%clk 01:40:52]} {[%emt 00:00:07]} 2. Nf3 {[%clk
01:41:22]} {[%emt 00:00:07]} d6 {[%emt 00:00:11]} 3. d4 {[%clk 01:41:49]} cxd4
{[%clk 01:41:36]} {[%emt 00:00:11]} 4. Nxd4 {[%clk 01:42:15]} Nf6 {[%clk
01:41:55]} {[%emt 00:00:11]} 5. Nc3 {[%clk 01:42:41]} {[%emt 00:00:03]} a6
{[%clk 01:42:17]} {[%emt 00:00:10]} 6. Be3 {[%clk 01:43:07]} {[%emt 00:00:03]}
e5 {[%clk 01:42:37]} {[%emt 00:00:10]} 7. Nb3 {[%clk 01:43:33]} {[%emt
00:00:04]} Be7 {[%clk 01:42:58]} {[%emt 00:00:09]} 8. h3 {[%clk 01:43:51]}
{[%emt 00:00:12]} h6 {[%clk 01:41:02]} {[%emt 00:02:25]} 9. Rg1 {[%clk
01:42:48]} {[%emt 00:01:34]} Be6 {[%clk 01:39:06]} {[%emt 00:02:26]} 10. Qf3
{[%clk 01:38:48]} {[%emt 00:04:30]} Nbd7 {[%emt 00:06:40]} 11. O-O-O {[%clk
01:39:05]} Rc8 {[%clk 01:24:23]} {[%emt 00:09:15]} 12. Nd5 {[%clk 01:37:57]}
{[%emt 00:01:38]} Bxd5 {[%clk 01:14:57]} {[%emt 00:09:56]} 13. exd5 {[%clk
01:38:17]} {[%emt 00:00:10]} Qc7 {[%clk 01:12:08]} {[%emt 00:03:19]} 14. Bd3
{[%clk 01:27:27]} {[%emt 00:11:20]} Nf8 {[%clk 00:40:45]} {[%emt 00:31:53]} 15.
Kb1 {[%clk 01:21:50]} {[%emt 00:06:07]} Ng6 {[%clk 00:35:38]} {[%emt 00:05:37]}
16. g3 {[%clk 01:18:04]} {[%emt 00:04:16]} O-O {[%clk 00:29:49]} {[%emt
00:06:19]} 17. Bf5 {[%clk 01:15:35]} {[%emt 00:02:58]} Rb8 {[%clk 00:28:47]}
{[%emt 00:01:33]} 18. h4 {[%clk 01:09:38]} {[%emt 00:06:27]} Rfe8 {[%clk
00:27:34]} {[%emt 00:01:42]} 19. Nd2 {[%clk 01:04:39]} {[%emt 00:05:30]} b5
{[%clk 00:25:36]} {[%emt 00:02:28]} 20. h5 {[%clk 01:02:58]} {[%emt 00:02:11]}
Nf8 {[%clk 00:23:58]} {[%emt 00:02:08]} 21. Ne4 {[%clk 00:57:58]} {[%emt
00:05:30]} Nxe4 {[%clk 00:24:05]} {[%emt 00:00:23]} 22. Bxe4 {[%clk 00:58:09]}
{[%emt 00:00:18]} Qd8 {[%clk 00:23:49]} {[%emt 00:00:46]} 23. Qg4 {[%clk
00:51:10]} {[%emt 00:07:30]} Bg5 {[%clk 00:22:10]} {[%emt 00:02:09]} 24. Bxg5
{[%clk 00:49:27]} {[%emt 00:02:14]} Qxg5 {[%clk 00:22:29]} {[%emt 00:00:11]} 25.
Qh3 {[%clk 00:49:44]} {[%emt 00:00:12]} Nh7 {[%clk 00:20:09]} {[%emt 00:02:51]}
26. f3 {[%clk 00:41:34]} {[%emt 00:08:40]} Nf6 {[%clk 00:17:26]} {[%emt
00:03:13]} 27. Rh1 {[%clk 00:41:14]} {[%emt 00:00:50]} Qe3 {[%clk 00:16:02]}
{[%emt 00:01:53]} 28. Qf5 {[%clk 00:37:24]} {[%emt 00:04:20]} Rbc8 {[%clk
00:14:40]} {[%emt 00:01:52]} 29. g4 {[%clk 00:30:52]} {[%emt 00:07:03]} Rc4
{[%clk 00:13:18]} {[%emt 00:01:52]} 30. Rhe1 {[%clk 00:27:44]} {[%emt
00:03:38]} Qf2 {[%clk 00:11:50]} {[%emt 00:01:56]} 31. Rf1 {[%clk 00:27:07]}
{[%emt 00:01:09]} Qg2 {[%clk 00:08:12]} {[%emt 00:04:07]} 32. Rg1 {[%clk
00:22:20]} {[%emt 00:05:17]} Qh2 {[%clk 00:06:06]} {[%emt 00:02:36]} 33. Rh1
{[%clk 00:10:37]} {[%emt 00:12:14]} Qf2 {[%clk 00:06:14]} {[%emt 00:00:22]} 34.
Rhf1 {[%clk 00:10:15]} {[%emt 00:00:52]} Qh2 {[%clk 00:06:27]} {[%emt
00:00:16]} 35. Rh1 {[%clk 00:08:54]} {[%emt 00:01:52]} Qf2 {[%clk 00:06:29]}
{[%emt 00:00:27]} 36. Rhf1 {[%clk 00:07:44]} {[%emt 00:01:08]} 1/2-1/2

[Event "Masters Tournament (MTO)"]
[Site "Biel, Switzerland"]
[Date "2026.07.16"]
[Round "4.22"]
[White "Schnell, Simon"]
[Black "Aryan, Goyal"]
[Result "1-0"]
[TimeControl "100+30+30sec/move"]
[WhiteTitle "-"]
[BlackTitle "-"]
[WhiteFideId "1345311"]
[BlackFideId "366108825"]
[WhiteElo "2211"]
[BlackElo "2029"]

1. d4 {[%clk 01:40:57]} {[%emt 00:00:01]} Nf6 {[%clk 01:39:54]} {[%emt
00:01:07]} 2. c4 {[%clk 01:41:22]} {[%emt 00:00:05]} e6 {[%clk 01:39:54]}
{[%emt 00:00:30]} 3. Nc3 {[%clk 01:41:48]} {[%emt 00:00:04]} Bb4 {[%clk
01:39:56]} {[%emt 00:00:28]} 4. e3 {[%clk 01:42:14]} {[%emt 00:00:04]} O-O
{[%clk 01:40:16]} {[%emt 00:00:10]} 5. Bd3 {[%clk 01:42:43]} {[%emt 00:00:01]}
b6 {[%clk 01:39:38]} {[%emt 00:01:09]} 6. e4 {[%clk 01:43:03]} {[%emt
00:00:10]} Bb7 {[%clk 01:37:39]} {[%emt 00:02:28]} 7. Bg5 {[%clk 01:42:56]}
{[%emt 00:00:37]} h6 {[%clk 01:37:18]} {[%emt 00:00:52]} 8. h4 {[%clk
01:43:21]} {[%emt 00:00:04]} Be7 {[%clk 01:30:52]} {[%emt 00:06:56]} 9. e5
{[%clk 01:43:36]} {[%emt 00:00:17]} Ne8 {[%clk 01:27:37]} {[%emt 00:03:44]} 10.
Qh5 {[%clk 01:43:50]} {[%emt 00:00:15]} f5 {[%clk 01:23:08]} {[%emt 00:05:00]}
11. exf6 {[%clk 01:32:35]} {[%emt 00:11:44]} Nxf6 {[%clk 01:22:13]} {[%emt
00:01:26]} 12. Qe2 {[%clk 01:27:55]} {[%emt 00:05:10]} c5 {[%clk 01:17:08]}
{[%emt 00:05:35]} 13. d5 {[%clk 01:19:53]} {[%emt 00:08:31]} exd5 {[%clk
01:12:31]} {[%emt 00:05:08]} 14. cxd5 {[%clk 01:20:02]} {[%emt 00:00:21]} d6
{[%clk 00:56:36]} {[%emt 00:16:25]} 15. O-O-O {[%clk 01:12:37]} {[%emt
00:07:55]} Nbd7 {[%clk 00:54:54]} {[%emt 00:02:11]} 16. Nf3 {[%clk 01:09:41]}
{[%emt 00:03:26]} Ne5 {[%clk 00:46:52]} {[%emt 00:08:34]} 17. Nxe5 {[%clk
01:08:41]} {[%emt 00:01:30]} dxe5 {[%clk 00:47:20]} {[%emt 00:00:02]} 18. d6
{[%clk 01:05:32]} {[%emt 00:03:38]} Bxd6 {[%clk 00:46:51]} {[%emt 00:00:58]} 19.
Bc4+ {[%clk 01:05:57]} {[%emt 00:00:06]} Kh8 {[%clk 00:47:17]} {[%emt
00:00:03]} 20. Nb5 {[%clk 01:06:02]} {[%emt 00:00:26]} 1-0

[Event "Masters Tournament (MTO)"]
[Site "Biel, Switzerland"]
[Date "2026.07.16"]
[Round "4.23"]
[White "Harish, Neeraj"]
[Black "Stevens, Christian"]
[Result "1-0"]
[TimeControl "100+30+30sec/move"]
[WhiteTitle "-"]
[BlackTitle "-"]
[WhiteFideId "30958130"]
[BlackFideId "649090"]
[WhiteElo "2201"]
[BlackElo "2014"]

1. e4 {[%clk 01:40:34]} {[%emt 00:00:25]} c5 {[%clk 01:40:46]} {[%emt
00:00:14]} 2. Nf3 {[%clk 01:40:49]} {[%emt 00:00:16]} d6 {[%clk 01:41:08]}
{[%emt 00:00:08]} 3. d4 {[%clk 01:41:11]} {[%emt 00:00:08]} cxd4 {[%clk
01:41:32]} {[%emt 00:00:06]} 4. Nxd4 {[%clk 01:41:34]} {[%emt 00:00:06]} Nf6
{[%clk 01:41:49]} {[%emt 00:00:12]} 5. Nc3 {[%clk 01:41:58]} {[%emt 00:00:07]}
a6 {[%clk 01:42:15]} {[%emt 00:00:05]} 6. Be3 {[%clk 01:42:20]} {[%emt
00:00:08]} e6 {[%clk 01:42:10]} {[%emt 00:00:35]} 7. a3 {[%clk 01:42:39]}
{[%emt 00:00:11]} Qc7 {[%clk 01:42:18]} {[%emt 00:00:21]} 8. g4 {[%clk
01:42:39]} {[%emt 00:00:30]} b5 {[%clk 01:42:19]} {[%emt 00:00:29]} 9. g5
{[%clk 01:40:17]} {[%emt 00:02:52]} Nfd7 {[%clk 01:42:42]} {[%emt 00:00:07]} 10.
f4 {[%clk 01:39:19]} {[%emt 00:01:28]} Bb7 {[%clk 01:41:08]} {[%emt 00:02:05]}
11. Qd2 {[%clk 01:35:07]} {[%emt 00:04:42]} Nb6 {[%clk 01:38:26]} {[%emt
00:03:11]} 12. O-O-O {[%clk 01:30:10]} {[%emt 00:05:27]} N8d7 {[%clk 01:37:37]}
{[%emt 00:01:19]} 13. Kb1 {[%clk 01:21:30]} {[%emt 00:09:11]} Rc8 {[%clk
01:36:13]} {[%emt 00:01:52]} 14. Bd3 {[%clk 01:13:45]} {[%emt 00:08:16]} Nc4
{[%clk 01:33:54]} {[%emt 00:02:49]} 15. Bxc4 {[%clk 01:12:14]} {[%emt
00:02:02]} Qxc4 {[%clk 01:34:15]} {[%emt 00:00:08]} 16. f5 {[%clk 01:02:22]}
{[%emt 00:10:23]} e5 {[%clk 01:32:08]} {[%emt 00:02:36]} 17. Nb3 {[%clk
01:02:29]} {[%emt 00:00:23]} b4 {[%clk 01:25:36]} {[%emt 00:07:03]} 18. axb4
{[%clk 01:00:18]} {[%emt 00:02:41]} Qxb4 {[%clk 01:25:07]} {[%emt 00:00:58]} 19.
Qd3 {[%clk 00:53:16]} {[%emt 00:07:33]} Rxc3 {[%clk 01:08:11]} {[%emt
00:17:26]} 20. bxc3 {[%clk 00:46:33]} {[%emt 00:07:12]} Qxe4 {[%clk 01:08:28]}
{[%emt 00:00:12]} 21. Rhe1 {[%clk 00:44:38]} {[%emt 00:02:27]} Be7 {[%clk
01:05:10]} {[%emt 00:03:48]} 22. Bc1 {[%clk 00:38:00]} {[%emt 00:07:08]} Qxd3
{[%clk 01:02:32]} {[%emt 00:03:07]} 23. Rxd3 {[%clk 00:30:33]} {[%emt
00:07:57]} d5 {[%clk 00:57:14]} {[%emt 00:05:48]} 24. h4 {[%clk 00:26:32]}
{[%emt 00:04:31]} f6 {[%clk 00:49:44]} {[%emt 00:08:00]} 25. Nd4 {[%clk
00:15:49]} {[%emt 00:11:13]} Nc5 {[%clk 00:45:46]} {[%emt 00:04:28]} 26. Rde3
{[%clk 00:16:02]} {[%emt 00:00:18]} Kf7 {[%clk 00:42:10]} {[%emt 00:04:05]} 27.
h5 {[%clk 00:10:51]} {[%emt 00:05:42]} Rb8 {[%clk 00:38:29]} {[%emt 00:04:10]}
28. g6+ {[%clk 00:10:43]} {[%emt 00:00:39]} Kg8 {[%clk 00:36:42]} {[%emt
00:02:17]} 29. gxh7+ {[%clk 00:07:35]} {[%emt 00:03:39]} Kxh7 {[%clk 00:37:05]}
{[%emt 00:00:06]} 30. h6 {[%clk 00:07:10]} {[%emt 00:00:55]} Bc8+ {[%clk
00:18:55]} {[%emt 00:18:39]} 31. Ka2 {[%clk 00:06:41]} {[%emt 00:01:00]} Ne4
{[%clk 00:17:08]} {[%emt 00:02:16]} 32. Ne6 {[%clk 00:06:01]} {[%emt 00:01:11]}
Bxe6 {[%clk 00:17:10]} {[%emt 00:00:27]} 33. fxe6 {[%clk 00:06:23]} {[%emt
00:00:08]} g5 {[%clk 00:17:10]} {[%emt 00:00:30]} 34. c4 {[%clk 00:04:55]}
{[%emt 00:01:59]} Bb4 {[%clk 00:07:21]} {[%emt 00:10:18]} 35. cxd5 {[%clk
00:04:20]} {[%emt 00:01:06]} Nd6 {[%clk 00:04:27]} {[%emt 00:03:24]} 36. Ba3
{[%clk 00:02:44]} {[%emt 00:02:07]} a5 {[%clk 00:04:14]} {[%emt 00:00:41]} 37.
Rb1 {[%clk 00:01:57]} {[%emt 00:01:17]} Rb5 {[%clk 00:02:39]} {[%emt 00:02:05]}
38. c3 {[%clk 00:00:58]} {[%emt 00:01:30]} Bxa3 {[%clk 00:02:40]} {[%emt
00:00:29]} 39. Rxb5 {[%clk 00:01:16]} {[%emt 00:00:12]} Nxb5 {[%clk 00:03:03]}
{[%emt 00:00:07]} 40. c4 {[%clk 00:01:40]} {[%emt 00:00:06]} Bc5 {[%clk
00:02:53]} {[%emt 00:00:39]} 41. cxb5 {[%clk 00:30:12]} {[%emt 00:01:59]} 1-0